[Event "DVM U10 2024"]
[Site "Duesseldorf"]
[Date "2024.12.27"]
[Round "3"]
[White "Jöhnke, Thore"]
[Black "Wüstenberg, Jan"]
[Result "0-1"]
[ECO "D00"]
[WhiteElo "861"]
[BlackElo "1221"]
[Annotator "NA RC"]
[PlyCount "134"]
[EventDate "2024.12.23"]
[EventType "team-tourn"]
[EventRounds "7"]
[EventCountry "GER"]
[SourceTitle "playchess.com"]
[Source "ChessBase"]
[SourceQuality "1"]
[TimeControl "3300+5"]

1. d4 {[%emt 0:00:04]} d5 {[%emt 0:00:05]} 2. Nc3 {[%emt 0:00:06]} Nf6 {[%emt 0:00:05]} 3. Nf3 {[%emt 0:00:21]} Nc6 {[%emt 0:00:48]} 4. Bf4 {[%emt 0:00:12]} Bg4 {[%emt 0:00:10]} 5. e3 {[%emt 0:00:16]} e6 {[%emt 0:00:10]} 6. Bb5 {[%emt 0:00:16]} a6 {[%emt 0:00:05]} 7. Ba4 {[%emt 0:00:07]} Bb4 {[%emt 0:00:15]} 8. a3 {[%emt 0:00:10]} b5 {[%emt 0:00:09]} 9. axb4 {[%emt 0:00:37]} bxa4 {[%emt 0:00:05]} 10. Nxa4 {[%emt 0:00:45]} Nxb4 {[%emt 0:00:33]} 11. Nc5 {[%emt 0:00:24]} O-O {[%emt 0:00:12]} 12. h3 {[%emt 0:00:15]} Bf5 {[%emt 0:00:11]} 13. O-O {[%emt 0:00:36]} Re8 {[%emt 0:00:18]} 14. Qd2 {[%emt 0:01:27]} Nxc2 {[%emt 0:00:12]} 15. Rac1 {[%emt 0:00:30]} a5 {[%emt 0:00:53]} 16. Nh4 {[%emt 0:00:36]} Ne4 {[%emt 0:00:56]} 17. Nxe4 {[%emt 0:00:14]} Bxe4 {[%emt 0:00:09]} 18. f3 {[%emt 0:00:18]} Nb4 {[%emt 0:00:53]} 19. fxe4 {[%emt 0:00:19]} Qxh4 {[%emt 0:00:07]} 20. e5 {[%emt 0:01:11]} Rac8 {[%emt 0:01:51]} 21. Rc5 {[%emt 0:01:39]} Qe7 {[%emt 0:01:29]} 22. Rxa5 {[%emt 0:01:26]} Rb8 {[%emt 0:02:36]} 23. Raa1 {[%emt 0:02:56]} Qd7 {[%emt 0:03:29]} 24. Qe2 {[%emt 0:00:00]} Qc8 {[%emt 0:00:30]} 25. Qg4 {[%emt 0:00:00]} g6 {[%emt 0:02:39]} 26. Bh6 {[%emt 0:00:00]} Qd7 {[%emt 0:00:45]} 27. Qh4 {[%emt 0:00:00]} Qe7 {[%emt 0:00:34]} 28. Bg5 {[%emt 0:00:03]} Qf8 {[%emt 0:00:22]} 29. Bh6 {[%emt 0:00:14]} Qe7 {[%emt 0:00:09]} 30. Bg5 {[%emt 0:01:01]} Qf8 {[%emt 0:00:09]} 31. Bf6 {[%emt 0:01:28]} Nd3 {[%emt 0:01:16]} 32. Rad1 {[%emt 0:00:51]} Nxb2 {[%emt 0:00:39]} 33. Rc1 {[%emt 0:00:11]} Rbc8 {[%emt 0:01:08]} 34. Qg5 {[%emt 0:00:41]} Nc4 {[%emt 0:00:44]} 35. Rf4 {[%emt 0:00:23]} Nxe3 {[%emt 0:00:16]} 36. Re1 {[%emt 0:00:26]} Nf5 {[%emt 0:00:11]} 37. h4 {[%emt 0:01:22]} Qh6 {[%emt 0:00:22]} 38. Qxh6 {[%emt 0:01:21]} Nxh6 {[%emt 0:00:07]} 39. Re3 {[%emt 0:00:20]} Nf5 {[%emt 0:00:23]} 40. Rh3 {[%emt 0:00:15]} c5 {[%emt 0:00:15]} 41. dxc5 {[%emt 0:00:46]} Rxc5 {[%emt 0:00:07]} 42. h5 {[%emt 0:00:10]} Rc1+ {[%emt 0:01:28]} 43. Kh2 {[%emt 0:00:08]} d4 {[%emt 0:00:41]} 44. hxg6 {[%emt 0:00:11]} fxg6 {[%emt 0:00:12]} 45. g4 {[%emt 0:00:55]} Rc2+ {[%emt 0:00:35]} 46. Kh1 {[%emt 0:00:11]} Ne3 {[%emt 0:00:49]} 47. g5 {[%emt 0:00:18]} Re2 {[%emt 0:08:21]} 48. Rfh4 {[%emt 0:00:14]} h5 {[%emt 0:02:08]} 49. Rxd4 {[%emt 0:00:28]} Kf7 {[%emt 0:00:34]} 50. Rd7+ {[%emt 0:00:16]} Kf8 {[%emt 0:00:18]} 51. Rg7 {[%emt 0:00:34]} Rc8 {[%emt 0:00:25]} 52. Rg3 {[%emt 0:00:52]} Nf5 {[%emt 0:00:35]} 53. Rg1 {[%emt 0:00:41]} Nxg7 {[%emt 0:00:21]} 54. Bxg7+ {[%emt 0:00:28]} Kxg7 {[%emt 0:00:13]} 55. Rd1 {[%emt 0:00:19]} Rcc2 {[%emt 0:00:28]} 56. Rd7+ {[%emt 0:00:28]} Kf8 {[%emt 0:00:06]} 57. Rd8+ {[%emt 0:00:16]} Ke7 {[%emt 0:00:05]} 58. Rd1 {[%emt 0:00:13]} Rh2+ {[%emt 0:00:10]} 59. Kg1 {[%emt 0:00:15]} Rcg2+ {[%emt 0:00:11]} 60. Kf1 {[%emt 0:00:28]} h4 {[%emt 0:01:06]} 61. Ra1 {[%emt 0:00:42]} Kd7 {[%emt 0:00:33]} 62. Ra7+ {[%emt 0:00:12]} Kc6 {[%emt 0:00:09]} 63. Ra6+ {[%emt 0:00:26]} Kb7 {[%emt 0:00:04]} 64. Rxe6 {[%emt 0:00:13]} h3 {[%emt 0:00:27]} 65. Re7+ {[%emt 0:00:09]} Kc6 {[%emt 0:00:06]} 66. Re6+ {[%emt 0:00:20]} Kd5 {[%emt 0:00:04]} 67. Rxg6 {[%emt 0:00:08]} Rh1# {[%emt 0:00:06]} 0-1

[Event "DVM U10 2024"]
[Site "Duesseldorf"]
[Date "2024.12.27"]
[Round "3"]
[White "Widlitzek, Philipp"]
[Black "Kresse, Andreas"]
[Result "1-0"]
[ECO "C45"]
[WhiteElo "860"]
[BlackElo "744"]
[Annotator "NA RC"]
[PlyCount "39"]
[EventDate "2024.12.23"]
[EventType "team-tourn"]
[EventRounds "7"]
[EventCountry "GER"]
[SourceTitle "playchess.com"]
[Source "ChessBase"]
[SourceQuality "1"]
[TimeControl "3300+5"]

1. e4 {[%emt 0:00:02]} e5 {[%emt 0:00:05]} 2. Nf3 {[%emt 0:00:04]} Nc6 {[%emt 0:00:07]} 3. d4 {[%emt 0:00:10]} exd4 {[%emt 0:00:18]} 4. Nxd4 {[%emt 0:00:05]} Nxd4 {[%emt 0:00:18]} 5. Qxd4 {[%emt 0:00:05]} b6 {[%emt 0:01:10]} 6. Nc3 {[%emt 0:00:11]} Bc5 {[%emt 0:00:04]} 7. Qxg7 {[%emt 0:00:29]} Qh4 {[%emt 0:02:08]} 8. g3 {[%emt 0:00:23]} Qh6 {[%emt 0:02:20]} 9. Bxh6 {[%emt 0:00:14]} Nxh6 {[%emt 0:00:32]} 10. Qxh8+ {[%emt 0:00:08]} Bf8 {[%emt 0:00:31]} 11. Nd5 {[%emt 0:00:15]} c6 {[%emt 0:00:25]} 12. Nc7+ {[%emt 0:00:10]} Ke7 {[%emt 0:01:11]} 13. Nxa8 {[%emt 0:00:18]} Bb7 {[%emt 0:00:22]} 14. Nc7 {[%emt 0:00:18]} c5 {[%emt 0:00:20]} 15. Nd5+ {[%emt 0:00:14]} Ke8 {[%emt 0:00:24]} 16. Qxh7 {[%emt 0:00:13]} Nf5 {[%emt 0:02:30]} 17. Qxf5 {[%emt 0:00:11]} Bxd5 {[%emt 0:01:11]} 18. Qxd5 {[%emt 0:00:13]} Ke7 {[%emt 0:00:31]} 19. O-O-O {[%emt 0:00:17]} Ke8 {[%emt 0:01:14]} 20. Qxd7# {[%emt 0:00:12]} 1-0

[Event "DVM U10 2024"]
[Site "Duesseldorf"]
[Date "2024.12.27"]
[Round "3"]
[White "Sachse, Alina"]
[Black "Kissel, Joshua"]
[Result "1/2-1/2"]
[ECO "B02"]
[WhiteElo "848"]
[BlackElo "1140"]
[Annotator "NA RC"]
[PlyCount "81"]
[EventDate "2024.12.23"]
[EventType "team-tourn"]
[EventRounds "7"]
[EventCountry "GER"]
[SourceTitle "playchess.com"]
[Source "ChessBase"]
[SourceQuality "1"]
[TimeControl "3300+5"]

1. e4 {[%emt 0:00:04]} d5 {[%emt 0:00:13]} 2. exd5 {[%emt 0:00:13]} Nf6 {[%emt 0:00:07]} 3. Nc3 {[%emt 0:00:11]} Nxd5 {[%emt 0:00:10]} 4. Nxd5 {[%emt 0:00:11]} Qxd5 {[%emt 0:00:10]} 5. b3 {[%emt 0:00:26]} e5 {[%emt 0:00:12]} 6. Bc4 {[%emt 0:00:09]} Qe4+ {[%emt 0:00:10]} 7. Ne2 {[%emt 0:00:13]} Qxg2 {[%emt 0:00:10]} 8. Rf1 {[%emt 0:00:36]} Qxh2 {[%emt 0:00:11]} 9. d3 {[%emt 0:00:35]} Bh3 {[%emt 0:00:11]} 10. Bb5+ {[%emt 0:00:40]} c6 {[%emt 0:00:08]} 11. Bc4 {[%emt 0:00:13]} Bc5 {[%emt 0:00:08]} 12. d4 {[%emt 0:00:23]} exd4 {[%emt 0:01:25]} 13. Bf4 {[%emt 0:01:09]} Qg2 {[%emt 0:00:17]} 14. Nxd4 {[%emt 0:01:16]} b5 {[%emt 0:00:25]} 15. Bd3 {[%emt 0:00:19]} Bxd4 {[%emt 0:00:17]} 16. Qe2+ {[%emt 0:00:40]} Be6 {[%emt 0:00:24]} 17. Be4 {[%emt 0:00:30]} Qg4 {[%emt 0:00:24]} 18. Bf3 {[%emt 0:00:38]} Qxf4 {[%emt 0:00:34]} 19. Rd1 {[%emt 0:00:16]} Bc3+ {[%emt 0:00:25]} 20. Rd2 {[%emt 0:00:16]} Bxd2+ {[%emt 0:00:25]} 21. Qxd2 {[%emt 0:00:16]} Qxd2+ {[%emt 0:00:54]} 22. Kxd2 {[%emt 0:00:01]} O-O {[%emt 0:00:15]} 23. Re1 {[%emt 0:00:19]} Bd5 {[%emt 0:00:21]} 24. Bg4 {[%emt 0:00:22]} c5 {[%emt 0:00:12]} 25. Re5 {[%emt 0:00:52]} Rd8 {[%emt 0:00:17]} 26. f4 {[%emt 0:00:23]} Na6 {[%emt 0:00:15]} 27. f5 {[%emt 0:04:49]} Bf3+ {[%emt 0:00:22]} 28. Ke3 {[%emt 0:00:30]} Bxg4 {[%emt 0:00:10]} 29. Kf4 {[%emt 0:00:22]} Rd4+ {[%emt 0:00:37]} 30. Kg5 {[%emt 0:00:30]} f6+ {[%emt 0:00:19]} 31. Kh4 {[%emt 0:00:16]} fxe5 {[%emt 0:00:16]} 32. Kg3 {[%emt 0:00:43]} Bxf5 {[%emt 0:00:23]} 33. c3 {[%emt 0:00:30]} Rd3+ {[%emt 0:00:15]} 34. Kf2 {[%emt 0:00:29]} Rxc3 {[%emt 0:00:13]} 35. Ke2 {[%emt 0:00:20]} Rc2+ {[%emt 0:00:12]} 36. Ke3 {[%emt 0:02:10]} Rxa2 {[%emt 0:00:22]} 37. Kf3 {[%emt 0:01:08]} Ra3 {[%emt 0:01:05]} 38. Kg3 Rxb3+ {[%emt 0:00:00]} 39. Kh4 {[%emt 0:01:02]} Rd8 {[%emt 0:00:09]} 40. Kg5 {[%emt 0:00:19]} g6 {[%emt 0:00:11]} 41. Kh4 {[%emt 0:01:10]} 1/2-1/2

[Event "DVM U10 2024"]
[Site "Duesseldorf"]
[Date "2024.12.27"]
[Round "3"]
[White "Vahner, Danyil"]
[Black "Belyakov, Konstantin"]
[Result "0-1"]
[ECO "C00"]
[WhiteElo "838"]
[BlackElo "1251"]
[Annotator "NA RC"]
[PlyCount "78"]
[EventDate "2024.12.23"]
[EventType "team-tourn"]
[EventRounds "7"]
[EventCountry "GER"]
[SourceTitle "playchess.com"]
[Source "ChessBase"]
[SourceQuality "1"]
[TimeControl "3300+5"]

1. e4 {[%emt 0:00:00]} e6 {[%emt 0:00:07]} 2. c4 {[%emt 0:00:10]} Nc6 {[%emt 0:00:09]} 3. d4 {[%emt 0:00:09]} Nce7 {[%emt 0:00:38]} 4. Nc3 {[%emt 0:00:15]} d5 {[%emt 0:00:21]} 5. cxd5 {[%emt 0:00:19]} exd5 {[%emt 0:00:09]} 6. e5 {[%emt 0:00:42]} Nc6 {[%emt 0:00:11]} 7. Bb5 {[%emt 0:00:25]} Qd7 {[%emt 0:00:31]} 8. Qf3 {[%emt 0:00:17]} Bb4 {[%emt 0:00:39]} 9. Bd2 {[%emt 0:00:23]} Bxc3 {[%emt 0:00:13]} 10. Bxc3 {[%emt 0:00:18]} Nge7 {[%emt 0:00:16]} 11. Qg3 {[%emt 0:00:33]} Qg4 {[%emt 0:00:45]} 12. Nf3 {[%emt 0:00:50]} O-O {[%emt 0:00:48]} 13. Bxc6 {[%emt 0:00:40]} Nxc6 {[%emt 0:00:09]} 14. O-O {[%emt 0:00:43]} f6 {[%emt 0:00:43]} 15. exf6 {[%emt 0:00:29]} Rxf6 {[%emt 0:00:33]} 16. Qxc7 {[%emt 0:00:51]} Rxf3 {[%emt 0:00:19]} 17. Rae1 {[%emt 0:01:05]} Rf8 {[%emt 0:00:49]} 18. Re3 {[%emt 0:01:28]} Qd7 {[%emt 0:00:45]} 19. Qg3 {[%emt 0:00:23]} Qf7 {[%emt 0:00:22]} 20. Rf3 {[%emt 0:01:29]} Bf5 {[%emt 0:01:24]} 21. Qh4 {[%emt 0:02:08]} Rae8 {[%emt 0:01:26]} 22. g4 {[%emt 0:00:37]} Qg6 {[%emt 0:00:33]} 23. Rg3 {[%emt 0:01:12]} Be4 {[%emt 0:00:50]} 24. b4 {[%emt 0:01:29]} Rf3 {[%emt 0:00:18]} 25. Re1 {[%emt 0:04:01]} Rxg3+ {[%emt 0:00:20]} 26. hxg3 {[%emt 0:00:35]} Qf6 {[%emt 0:01:39]} 27. Qh5 {[%emt 0:01:03]} g6 {[%emt 0:00:54]} 28. Qh6 {[%emt 0:00:34]} Qf3 {[%emt 0:00:26]} 29. Qh2 {[%emt 0:00:32]} Qxc3 {[%emt 0:00:27]} 30. Rf1 {[%emt 0:04:54]} Qxb4 {[%emt 0:00:34]} 31. f3 {[%emt 0:00:48]} Qxd4+ {[%emt 0:00:09]} 32. Kh1 {[%emt 0:01:08]} Bxf3+ {[%emt 0:00:53]} 33. Qg2 {[%emt 0:00:57]} Bxg2+ {[%emt 0:00:11]} 34. Kxg2 {[%emt 0:00:08]} Qxg4 {[%emt 0:00:21]} 35. Rf2 {[%emt 0:00:27]} Re2 {[%emt 0:00:10]} 36. Rxe2 {[%emt 0:00:12]} Qxe2+ {[%emt 0:00:08]} 37. Kh3 {[%emt 0:00:06]} h5 {[%emt 0:00:49]} 38. a4 {[%emt 0:00:20]} a5 {[%emt 0:00:00]} 39. Kh4 {[%emt 0:00:26]} Qg4# {[%emt 0:00:35]} 0-1

[Event "DVM U10 2024"]
[Site "Duesseldorf"]
[Date "2024.12.27"]
[Round "3"]
[White "Mätz, Mark"]
[Black "Thotli, Jathin Krishna"]
[Result "0-1"]
[ECO "D40"]
[WhiteElo "767"]
[BlackElo "1422"]
[Annotator "NA RC"]
[PlyCount "46"]
[EventDate "2024.12.23"]
[EventType "team-tourn"]
[EventRounds "7"]
[EventCountry "GER"]
[SourceTitle "playchess.com"]
[Source "ChessBase"]
[SourceQuality "1"]
[TimeControl "3300+5"]

1. d4 {[%emt 0:00:03]} d5 {[%emt 0:00:05]} 2. c4 {[%emt 0:00:09]} e6 {[%emt 0:00:04]} 3. Nf3 {[%emt 0:00:08]} Bd6 {[%emt 0:00:20]} 4. Nc3 {[%emt 0:00:14]} c5 {[%emt 0:00:10]} 5. e3 {[%emt 0:00:12]} Nf6 {[%emt 0:00:22]} 6. Bd3 {[%emt 0:00:17]} Nc6 {[%emt 0:00:29]} 7. e4 {[%emt 0:00:22]} cxd4 {[%emt 0:00:10]} 8. Nb5 {[%emt 0:00:27]} dxe4 {[%emt 0:00:25]} 9. Nxd6+ {[%emt 0:00:11]} Qxd6 {[%emt 0:00:11]} 10. Bc2 {[%emt 0:00:23]} exf3 {[%emt 0:00:11]} 11. Qxf3 {[%emt 0:00:25]} Qb4+ {[%emt 0:00:12]} 12. Bd2 {[%emt 0:00:20]} Qxb2 {[%emt 0:00:16]} 13. Rc1 {[%emt 0:00:22]} Nb4 {[%emt 0:00:17]} 14. Ba4+ {[%emt 0:00:16]} Bd7 {[%emt 0:00:19]} 15. Qxb7 {[%emt 0:00:15]} O-O {[%emt 0:00:22]} 16. Bxd7 {[%emt 0:00:21]} Nd3+ {[%emt 0:00:13]} 17. Kd1 {[%emt 0:00:25]} Qxb7 {[%emt 0:00:14]} 18. Bb5 {[%emt 0:00:38]} Nxf2+ {[%emt 0:00:20]} 19. Ke2 {[%emt 0:00:04]} Nxh1 {[%emt 0:00:16]} 20. Rxh1 {[%emt 0:00:06]} d3+ {[%emt 0:00:39]} 21. Kxd3 {[%emt 0:00:14]} Rad8+ {[%emt 0:00:12]} 22. Ke2 {[%emt 0:00:13]} Qxg2+ {[%emt 0:00:08]} 23. Kd1 {[%emt 0:00:13]} Qxd2# {[%emt 0:00:09]} 0-1